fUSD/lending_fUSD_20260226
["ID","MTS","AMOUNT","RATE_DAILY","PERIOD"]
[406732282,1772127032213,-300.0,9.077e-05,2]
[406732283,1772127032222,-212.25191644,9.077e-05,2]
[406732284,1772127032233,-87.74808356,9.077e-05,2]
[406732285,1772127032243,-902.29917544,9.077e-05,2]
[406732286,1772127032258,-297.70082456,9.077e-05,2]
[406732287,1772127032267,-195.0,9.077e-05,2]
[406732288,1772127032276,-300.0,9.077e-05,2]
[406732289,1772127032285,-39.63811031,9.078e-05,2]
[406732290,1772127032297,-495.74682973,9.078e-05,2]
[406732291,1772127032309,-878.36685496,9.078e-05,2]
[406732292,1772127032318,-195.0,9.078e-05,2]
[406732293,1772127032327,-195.0,9.078e-05,2]
[406732294,1772127032336,-195.0,9.078e-05,2]
[406732295,1772127032345,-300.0,9.078e-05,2]
[406732296,1772127032354,-300.0,9.078e-05,2]
[406732297,1772127032363,-300.0,9.078e-05,2]
[406732298,1772127032372,-188.09299602,9.078e-05,2]
[406732299,1772127032381,-150.0,9.078e-05,2]
[406732300,1772127032390,-2500.0,9.078e-05,2]
[406732301,1772127032399,-2500.0,9.078e-05,2]
[406732302,1772127032408,-500.0,9.079e-05,2]
[406732303,1772127032417,-244.02706467,9.079e-05,2]
[406732304,1772127032426,-500.0,9.079e-05,2]
[406732305,1772127032435,-515.63356869,9.079e-05,2]
[406732306,1772127032444,-500.0,9.079e-05,2]
[406732307,1772127032453,-500.0,9.079e-05,2]
[406732308,1772127032462,-500.0,9.079e-05,2]
[406732309,1772127032472,-550.0,9.079e-05,2]
[406732310,1772127032480,-500.0,9.079e-05,2]
[406732311,1772127032491,-11675.32104565,9.08e-05,2]
[406732312,1772127032502,-1164.57560884,9.08e-05,2]
[406732316,1772127038137,-1530.934694,9.08e-05,2]
[406732317,1772127038148,-5530.0,9.08e-05,2]
[406732318,1772127038248,-426.1968955,9.08e-05,2]
[406732319,1772127038259,-6077.908088,9.08e-05,2]
[406732320,1772127038305,-358309.60077944,9.08e-05,2]
[406732321,1772127038316,-1615285.46288857,9.08e-05,2]
[406732322,1772127038327,-160.15,9.1e-05,2]
[406732323,1772127038344,-188.09299601,9.1e-05,2]
[406732324,1772127038355,-432.665,9.123e-05,2]
[406732325,1772127038365,-32883.6844,9.18e-05,2]
[406732326,1772127038375,-30053.96,9.74e-05,2]
[406732327,1772127038384,-772.91,9.846e-05,2]
[406732328,1772127038394,-4133.1798,9.898e-05,2]
[406732329,1772127038403,-11803.9657,9.898e-05,2]
[406732330,1772127038413,-285.3136,9.898e-05,2]
[406732331,1772127038422,-2500.0,9.898e-05,2]
[406732332,1772127038431,-780.0,9.92e-05,2]
[406732333,1772127038440,-1583.0,9.94e-05,2]
[406732334,1772127038449,-1400.0,9.959e-05,2]
[406732335,1772127038458,-150.0,9.97e-05,2]
[406732336,1772127038468,-1087.0,9.979e-05,2]
[406732337,1772127038646,-420.0,9.984e-05,2]
[406732339,1772127038656,-1680.0,9.984e-05,2]
[406732341,1772127038668,-2500.0,9.985e-05,2]
[406732343,1772127038677,-195.0,9.985e-05,2]
[406732344,1772127038687,-300.0,9.985e-05,2]
[406732345,1772127038697,-151.0,9.995e-05,2]
[406732347,1772127038707,-1237585.52128918,9.998e-05,2]
[406732349,1772127038719,-3149.61201621,9.998e-05,2]
[406732360,1772127040534,-259264.86669461,9.998e-05,2]
[406732361,1772127040544,-500.0,9.998e-05,2]
[406732362,1772127040554,-196.32932638,9.998e-05,2]
[406732363,1772127040564,-3707.87300561,9.998e-05,2]
[406732364,1772127040574,-152.0,9.999e-05,2]
[406732365,1772127040585,-515.74,0.0001,2]
[406732366,1772127040594,-740.4702443,0.0001,2]
[406732367,1772127040603,-151.0,0.0001,2]
[406732368,1772127040613,-151.0,0.0001,2]
[406732369,1772127040622,-151.0,0.0001,2]
[406732370,1772127040631,-151.0,0.0001,2]
[406732371,1772127040641,-151.0,0.0001,2]
[406732372,1772127040650,-301.47494797,0.0001,2]
[406732373,1772127040660,-500.0,0.0001,2]
[406732374,1772127040674,-151.0,0.0001,2]
[406732375,1772127040684,-500.0,0.0001,2]
[406732376,1772127040693,-151.0,0.0001,2]
[406732377,1772127040702,-500.0,0.0001,2]
[406732378,1772127040714,-151.0,0.0001,2]
[406732379,1772127040724,-500.0,0.0001,2]
[406732380,1772127040733,-1900.0,0.0001,3]
[406732381,1772127040742,-151.0,0.0001,2]
[406732382,1772127040753,-500.0,0.0001,2]
[406732383,1772127040762,-151.0,0.0001,2]
[406732384,1772127040771,-500.0,0.0001,2]
[406732385,1772127040781,-151.0,0.0001,2]
[406732386,1772127040791,-502.62170178,0.0001,2]
[406732387,1772127040800,-151.0,0.0001,2]
[406732388,1772127040810,-151.0,0.0001,2]
[406732389,1772127040819,-151.0,0.0001,2]
[406732390,1772127040829,-151.0,0.0001,2]
[406732391,1772127040838,-151.0,0.0001,2]
[406732392,1772127040847,-151.0,0.0001,2]
[406732393,1772127040857,-151.0,0.0001,2]
[406732394,1772127040866,-151.0,0.0001,2]
[406732395,1772127040876,-151.0,0.0001,2]
[406732396,1772127040885,-151.0,0.0001,2]
[406732397,1772127040894,-151.0,0.0001,2]
[406732398,1772127040903,-151.0,0.0001,2]
[406732399,1772127040912,-151.0,0.0001,2]
[406732400,1772127040922,-151.0,0.0001,2]
[406732401,1772127040931,-151.0,0.0001,2]
[406732402,1772127040941,-151.0,0.0001,2]
[406732403,1772127040951,-151.0,0.0001,2]
[406732404,1772127040960,-151.0,0.0001,2]
[406732405,1772127040970,-151.0,0.0001,2]
[406732406,1772127040979,-151.0,0.0001,2]
[406732407,1772127040989,-151.0,0.0001,2]
[406732408,1772127040999,-151.0,0.0001,2]
[406732409,1772127041010,-151.0,0.0001,2]
[406732410,1772127041020,-151.0,0.0001,2]
[406732411,1772127041029,-151.0,0.0001,2]
[406732412,1772127041039,-1070.62307231,0.0001,2]
[406732413,1772127041050,-1070.62307231,0.0001,2]
[406732414,1772127041060,-1100.0,0.00010019,2]
[406732415,1772127041070,-500.0,0.00010272,2]
[406732416,1772127041080,-515.74,0.00010274,2]
[406732417,1772127041090,-500.0,0.000103,2]
[406732418,1772127041099,-500.0,0.000103,2]
[406732419,1772127041110,-500.0,0.000103,2]
[406732420,1772127041121,-500.0,0.000103,2]
[406732421,1772127041131,-500.76827377,0.000103,2]
[406732422,1772127041142,-500.0,0.000103,2]
[406732423,1772127041151,-500.0,0.000103,2]
[406732424,1772127041161,-500.0,0.000103,2]
[406732425,1772127041171,-500.0,0.000103,2]
[406732426,1772127041181,-600.0,0.000103,2]
[406732427,1772127041190,-500.0,0.000103,2]
[406732428,1772127041199,-500.0,0.000103,2]
[406732429,1772127041209,-600.0,0.000103,2]
[406732430,1772127041218,-500.0,0.000103,2]
[406732431,1772127041228,-600.0,0.000103,2]
[406732432,1772127041238,-500.0,0.000103,2]
[406732433,1772127041247,-500.0,0.000103,2]
[406732434,1772127041257,-600.0,0.000103,2]
[406732435,1772127041266,-500.0,0.000103,2]
[406732436,1772127041276,-500.0,0.000103,2]
[406732437,1772127041285,-500.0,0.000103,2]
[406732438,1772127041295,-600.0,0.000103,2]
[406732439,1772127041304,-500.0,0.000103,2]
[406732440,1772127041314,-500.0,0.000103,2]
[406732441,1772127041328,-500.0,0.000103,2]
[406732442,1772127041337,-600.0,0.000103,2]
[406732443,1772127041347,-500.0,0.000103,2]
[406732444,1772127041356,-500.0,0.000103,2]
[406732445,1772127041365,-500.0,0.000103,2]
[406732446,1772127041375,-600.0,0.000103,2]
[406732447,1772127041384,-500.0,0.000103,2]
[406732448,1772127041393,-500.0,0.000103,2]
[406732449,1772127041403,-500.0,0.000103,2]
[406732450,1772127041412,-500.0,0.000103,2]
[406732451,1772127041421,-600.0,0.000103,2]
[406732452,1772127041430,-500.0,0.000103,2]
[406732453,1772127041440,-500.0,0.000103,2]
[406732454,1772127041449,-500.0,0.000103,2]
[406732455,1772127041459,-600.0,0.000103,2]
[406732456,1772127041468,-500.0,0.000103,2]
[406732457,1772127041477,-500.0,0.000103,2]
[406732458,1772127041487,-500.0,0.000103,2]
[406732459,1772127041496,-600.0,0.000103,2]
[406732460,1772127041506,-500.0,0.000103,2]
[406732461,1772127041515,-500.0,0.000103,2]
[406732462,1772127041528,-600.0,0.000103,2]
[406732463,1772127041538,-500.0,0.000103,2]
[406732464,1772127041548,-600.0,0.000103,2]
[406732465,1772127041557,-800.0,0.000103,2]
[406732466,1772127041568,-500.0,0.000103,2]
[406732467,1772127041577,-600.0,0.000103,2]
[406732468,1772127041587,-800.0,0.000103,2]
[406732469,1772127041596,-500.0,0.000103,2]
[406732470,1772127041606,-500.0,0.000103,2]
[406732471,1772127041615,-1100.0,0.000103,2]
[406732472,1772127041625,-800.0,0.000103,2]
[406732473,1772127041635,-500.0,0.000103,2]
[406732474,1772127041645,-500.0,0.000103,2]
[406732475,1772127041655,-500.0,0.000103,2]
[406732476,1772127041666,-500.0,0.000103,2]
[406732477,1772127041676,-500.0,0.000103,2]
[406732478,1772127041686,-800.0,0.000103,2]
[406732479,1772127041696,-500.0,0.000103,2]
[406732480,1772127041707,-500.0,0.000103,2]
[406732481,1772127041716,-800.0,0.000103,2]
[406732482,1772127041726,-500.0,0.000103,2]
[406732483,1772127041739,-500.0,0.000103,2]
[406732484,1772127041751,-800.0,0.000103,2]
[406732485,1772127041761,-500.0,0.000103,2]
[406732486,1772127041771,-500.0,0.000103,2]
[406732487,1772127041781,-800.0,0.000103,2]
[406732488,1772127041790,-500.0,0.000103,2]
[406732489,1772127041800,-500.0,0.000103,2]
[406732490,1772127041810,-800.0,0.000103,2]
[406732491,1772127041955,-800.0,0.000103,2]
[406732492,1772127041966,-800.0,0.000103,2]
[406732493,1772127041976,-800.0,0.000103,2]
[406732494,1772127041985,-800.0,0.000103,2]
[406732495,1772127041995,-1300.0,0.000103,2]
[406732496,1772127042004,-410.87669946,0.00010546,2]
[406732497,1772127042014,-515.74,0.00010548,2]
[406732498,1772127042023,-51222.0,0.000108,2]
[406732499,1772127042032,-515.74,0.00010822,2]
[406732500,1772127042042,-158.6599059,0.00010829,2]
[406732501,1772127042053,-502.2030619,0.00010829,2]
[406732502,1772127042063,-500.53906536,0.00010829,2]
[406732503,1772127042072,-500.0,0.00010829,2]
[406732504,1772127042082,-500.28462042,0.00010829,2]
[406732505,1772127042095,-500.0,0.00010829,2]
[406732506,1772127042104,-500.0,0.00010829,2]
[406732507,1772127042113,-500.0,0.00010829,2]
[406732508,1772127042122,-500.72325527,0.00010829,2]
[406732509,1772127042131,-500.0,0.00010829,2]
[406732510,1772127042141,-2300.0,0.000109,3]
[406732511,1772127042151,-300.0,0.00010983,2]
[406732512,1772127042161,-990.0,0.00010983,2]
[406732513,1772127042171,-515.74,0.00011096,2]
[406732514,1772127042180,-37901.47,0.00011096,2]
[406732515,1772127042190,-26224.37597131,0.00011099,2]
[406732516,1772127042199,-26224.37597126,0.00011099,2]
[406732517,1772127042208,-26224.37597126,0.00011099,2]
[406732518,1772127042217,-30763.77692979,0.00011099,2]
[406732519,1772127042227,-30763.77692973,0.00011099,2]
[406732520,1772127042236,-30763.77692973,0.00011099,2]
[406732521,1772127042245,-5531.0,0.000111,3]
[406732522,1772127042255,-515.74776369,0.0001137,2]
[406732523,1772127042264,-513.39301398,0.00011377,2]
[406732524,1772127042274,-1000.0,0.00011377,2]
[406732525,1772127042287,-1000.0,0.00011377,2]
[406732526,1772127042296,-1000.0,0.00011377,2]
[406732527,1772127042307,-166.66,0.00011429,2]
[406732528,1772127042316,-5531.0,0.000115,5]
[406732529,1772127042326,-166.66,0.00011806,2]
[406732530,1772127042335,-1500.0,0.00011924,2]
[406732531,1772127042344,-200.09788063,0.00011924,2]
[406732532,1772127042355,-501.85175183,0.00011924,2]
[406732533,1772127042364,-26224.37597126,0.00011928,2]
[406732534,1772127042373,-30763.77692973,0.00011945,2]
[406732535,1772127042383,-6542.32,0.0001218,2]
[406732536,1772127042392,-166.66,0.00012184,2]
[406732537,1772127042401,-250.0,0.00012298,2]
[406732538,1772127042411,-2000.0,0.00012472,2]
[406732539,1772127042420,-166.66,0.00012561,2]
[406732540,1772127042429,-26224.37597126,0.00012904,2]
[406732541,1772127042440,-30763.77692973,0.00012926,2]
[406732542,1772127042450,-166.66,0.00012938,2]
[406732543,1772127042459,-2500.0,0.0001302,2]
[406732544,1772127042468,-1139.137494,0.00013081,2]
[406732545,1772127042477,-4207.189334,0.00013081,2]
[406732546,1772127042486,-600.0,0.0001312,2]
[406732547,1772127042495,-500.0,0.0001312,2]
[406732548,1772127042505,-500.0,0.0001312,2]
[406732549,1772127042514,-500.0,0.0001312,2]
[406732550,1772127042523,-600.0,0.0001312,2]
[406732551,1772127042533,-500.0,0.0001312,2]
[406732552,1772127042542,-500.0,0.0001312,2]
[406732553,1772127042551,-173.7910009,0.0001312,2]
[406732554,1772127042561,-600.0,0.0001312,2]
[406732555,1772127042570,-500.0,0.0001312,2]
[406732556,1772127042579,-500.0,0.0001312,2]
[406732557,1772127042589,-600.0,0.0001312,2]
[406732558,1772127042598,-500.0,0.0001312,2]
[406732559,1772127042608,-600.0,0.0001312,2]
[406732560,1772127042618,-500.0,0.0001312,2]
[406732561,1772127042628,-600.0,0.0001312,2]
[406732562,1772127042639,-500.0,0.0001312,2]
[406732563,1772127042648,-500.0,0.0001312,2]
[406732564,1772127042658,-600.0,0.0001312,2]
[406732565,1772127042679,-500.0,0.0001312,2]
[406732566,1772127042691,-500.0,0.0001312,2]
[406732567,1772127042701,-600.0,0.0001312,2]
[406732568,1772127042712,-500.0,0.0001312,2]
[406732569,1772127042722,-500.0,0.0001312,2]
[406732570,1772127042731,-600.0,0.0001312,2]
[406732571,1772127042741,-500.0,0.0001312,2]
[406732572,1772127042753,-500.0,0.0001312,2]
[406732573,1772127042762,-500.0,0.0001312,2]
[406732574,1772127042772,-226.12454466,0.0001312,2]
[406732575,1772127042781,-600.0,0.0001312,2]
[406732576,1772127042791,-500.0,0.0001312,2]
[406732577,1772127042801,-500.0,0.0001312,2]
[406732578,1772127042811,-500.0,0.0001312,2]
[406732579,1772127042821,-500.0,0.0001312,2]
[406732580,1772127042830,-600.0,0.0001312,2]
[406732581,1772127042840,-500.0,0.0001312,2]
[406732582,1772127042849,-500.0,0.0001312,2]
[406732583,1772127042859,-500.0,0.0001312,2]
[406732584,1772127042868,-600.0,0.0001312,2]
[406732585,1772127042878,-500.0,0.0001312,2]
[406732586,1772127042888,-500.0,0.0001312,2]
[406732587,1772127042897,-500.0,0.0001312,2]
[406732588,1772127042907,-600.0,0.0001312,2]
[406732589,1772127042917,-500.0,0.0001312,2]
[406732590,1772127042926,-500.0,0.0001312,2]
[406732591,1772127042936,-150.25022043,0.0001312,2]
[406732592,1772127042946,-600.0,0.0001312,2]
[406732593,1772127042956,-500.0,0.0001312,2]
[406732594,1772127042965,-800.0,0.0001312,2]
[406732595,1772127042975,-500.0,0.0001312,2]
[406732596,1772127042984,-600.0,0.0001312,2]
[406732597,1772127042994,-800.0,0.0001312,2]
[406732598,1772127043004,-500.0,0.0001312,2]
[406732599,1772127043013,-500.0,0.0001312,2]
[406732600,1772127043023,-500.0,0.0001312,2]
[406732601,1772127043033,-800.0,0.0001312,2]
[406732602,1772127043047,-500.0,0.0001312,2]
[406732603,1772127043058,-800.0,0.0001312,2]
[406732605,1772127043068,-800.0,0.0001312,2]
[406732606,1772127043077,-500.0,0.0001312,2]
[406732608,1772127043087,-500.0,0.0001312,2]
[406732609,1772127043096,-800.0,0.0001312,2]
[406732611,1772127043106,-500.0,0.0001312,2]
[406732612,1772127043116,-800.0,0.0001312,2]
[406732614,1772127043126,-853.76768935,0.0001312,2]
[406732615,1772127043136,-800.0,0.0001312,2]
[406732617,1772127043146,-500.0,0.0001312,2]
[406732618,1772127043156,-500.0,0.0001312,2]
[406732619,1772127043167,-500.0,0.0001312,2]
[406732621,1772127043177,-500.0,0.0001312,2]
[406732623,1772127043187,-800.0,0.0001312,2]
[406732625,1772127043197,-500.0,0.0001312,2]
[406732626,1772127043206,-500.0,0.0001312,2]
[406732627,1772127043216,-500.0,0.0001312,2]
[406732628,1772127043226,-800.0,0.0001312,2]
[406732629,1772127043239,-500.0,0.0001312,2]
[406732630,1772127043249,-500.0,0.0001312,2]
[406732631,1772127043260,-500.0,0.0001312,2]
[406732632,1772127043270,-800.0,0.0001312,2]
[406732633,1772127043279,-670.0,0.0001312,2]
[406732634,1772127043289,-500.0,0.0001312,2]
[406732635,1772127043302,-500.0,0.0001312,2]
[406732636,1772127043321,-800.0,0.0001312,2]
[406732637,1772127043331,-500.0,0.0001312,2]
[406732638,1772127043340,-500.0,0.0001312,2]
[406732639,1772127043349,-800.0,0.0001312,2]
[406732640,1772127043359,-500.0,0.0001312,2]
[406732641,1772127043369,-500.0,0.0001312,2]
[406732642,1772127043379,-500.0,0.0001312,2]
[406732643,1772127043389,-500.0,0.0001312,2]
[406732644,1772127043399,-500.0,0.0001312,2]
[406732645,1772127043408,-502.38608045,0.0001312,2]
[406732646,1772127043418,-500.0,0.0001312,2]
[406732647,1772127043427,-500.0,0.0001312,2]
[406732648,1772127043437,-500.0,0.0001312,2]
[406732649,1772127043451,-500.0,0.0001312,2]
[406732650,1772127043460,-500.0,0.0001312,2]
[406732651,1772127043471,-166.66,0.00013315,2]
[406732652,1772127043480,-740.47024428,0.0001345,2]
[406732653,1772127043490,-3000.0,0.00013568,2]
[406732654,1772127043500,-40000.0,0.0001366,2]
[406732655,1772127043510,-500.0,0.00013698,2]
[406732669,1772127043520,-500.0,0.00013698,2]
[406732672,1772127043687,-500.0,0.00013698,2]
[406732674,1772127043697,-500.0,0.00013698,2]
[406732676,1772127043707,-409.20397161,0.00013698,2]
[406732678,1772127043716,-271.25,0.00013699,2]
[406732680,1772127043726,-226.04,0.00013699,2]
[406732682,1772127043736,-188.37,0.00013699,2]
[406732684,1772127043746,-156.97,0.00013699,2]
[406732686,1772127043755,-784.9,0.00013699,2]
[406732688,1772127043764,-1000.0,0.00013699,7]
[406732690,1772127043774,-150.07970695,0.000137,2]
[406732692,1772127043784,-152.0,0.00013808,3]
[406732694,1772127043796,-26224.37597126,0.0001388,2]
[406732696,1772127043806,-26419.17167689,0.00013899,2]
[406732698,1772127043816,-3707.87300559,0.00013899,2]
[406732700,1772127043825,-30763.77692973,0.00013908,2]
[406732702,1772127043835,-10000.0,0.00014027,2]
[406732704,1772127043844,-995.28114408,0.00014073,2]
[406732706,1772127043853,-3500.0,0.00014116,2]
[406732708,1772127043862,-509.36,0.00014126,2]
[406732710,1772127043872,-509.36,0.00014126,2]
[406732712,1772127043881,-509.36,0.00014126,2]
[406732714,1772127043890,-509.36,0.00014126,2]
[406732716,1772127043900,-509.36,0.00014126,2]
[406732718,1772127043909,-509.36,0.00014126,2]
[406732720,1772127043918,-509.36,0.00014126,2]
[406732722,1772127043927,-509.36,0.00014126,2]
[406732724,1772127043937,-1277.0,0.00014173,2]
[406732726,1772127043947,-1211.0,0.00014173,2]
[406732728,1772127043957,-942.805,0.00014173,2]
[406732730,1772127043966,-618.0,0.00014173,2]
[406732732,1772127043976,-3498.0,0.00014173,2]
[406732734,1772127043987,-1340.0,0.00014173,2]
[406732736,1772127043997,-224.40086961,0.00014224,2]
[406732738,1772127044007,-553.32,0.00014575,2]
[406732740,1772127044017,-152.0,0.00014583,4]
[406732742,1772127044026,-151.0,0.00014634,2]
[406732744,1772127044036,-2966.1264312,0.00014664,2]
[406732746,1772127044045,-995.28114407,0.00014711,2]
[406732748,1772127044055,-26224.37597126,0.00014856,2]
[406732750,1772127044064,-30763.77692973,0.00014889,2]
[406732752,1772127044074,-160.0,0.00014933,2]
[406732753,1772127044083,-173.95657067,0.00014933,2]
[406732754,1772127044092,-250.0,0.00015,2]
[406732755,1772127044101,-502.0,0.0001512,2]
[406732756,1772127044111,-553.32,0.00015304,2]
[406732757,1772127044120,-9999.99,0.0001531,2]
[406732758,1772127044128,-299.99,0.0001531,2]
[406732759,1772127044138,-150.99,0.0001531,2]
[406732760,1772127044147,-381.71,0.0001531,2]
[406732761,1772127044156,-200.0,0.00015311,2]
[406732762,1772127044169,-995.28114407,0.00015349,2]
[406732763,1772127044178,-152.0,0.00015359,5]
[406732764,1772127044187,-1225.25,0.00015379,2]
[406732765,1772127044197,-28065.41,0.00015471,2]
[406732766,1772127044206,-26224.37597126,0.00015832,2]
[406732767,1772127044215,-151.0,0.00015868,2]
[406732768,1772127044223,-30763.77692973,0.00015871,2]
[406732769,1772127044232,-995.28114407,0.00015987,2]
[406732770,1772127044241,-500.000001,0.00016,2]
[406732771,1772127044250,-553.32,0.00016033,2]
[406732772,1772127044260,-150.0,0.00016094,2]
[406732773,1772127044269,-152.0,0.00016134,6]
[406732774,1772127044277,-500.0,0.00016356,2]
[406732775,1772127044286,-500.0,0.00016356,2]
[406732777,1772127044295,-700.0,0.00016356,2]
[406732778,1772127044304,-845.0,0.000164,2]
[406732780,1772127044314,-1212.0,0.000164,2]
[406732782,1772127044323,-621.4,0.00016438,2]
[406732784,1772127044333,-995.28114407,0.00016624,2]
[406732786,1772127044343,-502.0,0.00016665,3]
[406732788,1772127044352,-621.4,0.00016712,2]
[406732791,1772127044365,-553.32,0.00016761,2]
[406732793,1772127044384,-26224.37597126,0.00016808,2]
[406732795,1772127044394,-1000.0,0.00016849,7]
[406732798,1772127044414,-30763.77692973,0.00016852,2]
[406732800,1772127044424,-152.0,0.0001691,7]
[406732802,1772127044434,-621.4,0.00016986,2]
[406732804,1772127044444,-300.0,0.00017,2]
[406732806,1772127044453,-500.0,0.00017,7]
[406732808,1772127044463,-417.39,0.00017,7]
[406732810,1772127044472,-288.0,0.00017026,2]
[406732812,1772127044482,-160.0,0.0001704,2]
[406732814,1772127044492,-190.0,0.0001704,2]
[406732816,1772127044501,-800.0,0.00017041,2]
[406732818,1772127044510,-433.0,0.00017041,2]
[406732820,1772127044520,-800.0,0.00017041,2]
[406732822,1772127044530,-800.0,0.00017041,2]
[406732824,1772127044539,-800.0,0.00017041,2]
[406732826,1772127044549,-800.0,0.00017041,2]
[406732828,1772127044560,-800.0,0.00017041,2]
[406732830,1772127044571,-800.0,0.00017041,2]
[406732832,1772127044581,-800.0,0.00017041,2]
[406732834,1772127044591,-800.0,0.00017041,2]
[406732836,1772127044601,-800.0,0.00017041,2]
[406732839,1772127044611,-800.0,0.00017041,2]
[406732841,1772127044621,-800.0,0.00017041,2]
[406732843,1772127044631,-800.0,0.00017041,2]
[406732845,1772127044641,-800.0,0.00017041,2]
[406732847,1772127044650,-800.0,0.00017041,2]
[406732849,1772127044660,-800.0,0.00017041,2]
[406732851,1772127044672,-800.0,0.00017041,2]
[406732853,1772127044682,-800.0,0.00017041,2]
[406732855,1772127044691,-800.0,0.00017041,2]
[406732857,1772127044701,-800.0,0.00017041,2]
[406732859,1772127044711,-800.0,0.00017041,2]
[406732861,1772127044720,-800.0,0.00017041,2]
[406732863,1772127044734,-800.0,0.00017041,2]
[406732865,1772127044744,-800.0,0.00017041,2]
[406732867,1772127044758,-800.0,0.00017041,2]
[406732869,1772127044768,-800.0,0.00017041,2]
[406732871,1772127044778,-800.0,0.00017041,2]
[406732873,1772127044788,-800.0,0.00017041,2]
[406732875,1772127044798,-800.0,0.00017041,2]
[406732877,1772127044808,-800.0,0.00017041,2]
[406732879,1772127044819,-800.0,0.00017041,2]
[406732881,1772127044828,-800.0,0.00017041,2]
[406732883,1772127044838,-800.0,0.00017041,2]
[406732885,1772127044847,-800.0,0.00017041,2]
[406732888,1772127044857,-800.0,0.00017041,2]
[406732890,1772127044866,-800.0,0.00017041,2]
[406732892,1772127044875,-800.0,0.00017041,2]
[406732894,1772127044885,-200.0,0.00017041,2]
[406732896,1772127044895,-200.0,0.00017041,2]
[406732898,1772127044905,-200.0,0.00017041,2]
[406732899,1772127044916,-200.0,0.00017041,2]
[406732902,1772127044926,-200.0,0.00017041,2]
[406732904,1772127044935,-200.0,0.00017041,2]
[406732906,1772127044944,-200.0,0.00017041,2]
[406732908,1772127044954,-200.0,0.00017041,2]
[406732910,1772127044963,-200.0,0.00017041,2]
[406732912,1772127044977,-200.0,0.00017041,2]
[406732914,1772127044987,-200.0,0.00017041,2]
[406732916,1772127044996,-200.0,0.00017041,2]
[406732918,1772127045006,-200.0,0.00017041,2]
[406732920,1772127045016,-200.0,0.00017041,2]
[406732922,1772127045025,-200.0,0.00017041,2]
[406732924,1772127045035,-200.0,0.00017041,2]
[406732926,1772127045045,-200.0,0.00017041,2]
[406732929,1772127045056,-200.0,0.00017041,2]
[406732931,1772127045066,-200.0,0.00017041,2]
[406732933,1772127045075,-200.0,0.00017041,2]
[406732935,1772127045084,-200.0,0.00017041,2]
[406732937,1772127045094,-200.0,0.00017041,2]
[406732939,1772127045103,-200.0,0.00017041,2]
[406732941,1772127045112,-200.0,0.00017041,2]
[406732943,1772127045121,-200.0,0.00017041,2]
[406732960,1772127045269,-200.0,0.00017041,2]
[406732962,1772127045278,-200.0,0.00017041,2]
[406732964,1772127045288,-200.0,0.00017041,2]
[406732966,1772127045298,-200.0,0.00017041,2]
[406732969,1772127045311,-200.0,0.00017041,2]